fUSD/lending_fUSD_20250110
["ID","MTS","AMOUNT","RATE_DAILY","PERIOD"]
[348381459,1736487032064,-2066.72,9.999e-05,2]
[348381460,1736487032073,-1525.55,9.999e-05,2]
[348381461,1736487032085,-1594.24,9.999e-05,2]
[348381462,1736487032097,-2213.02,9.999e-05,2]
[348381463,1736487032106,-1066.78,9.999e-05,2]
[348381464,1736487032115,-705.21,9.999e-05,2]
[348381465,1736487032123,-1845.44,9.999e-05,2]
[348381466,1736487032135,-500.0,9.999e-05,2]
[348381467,1736487032145,-587.63,9.999e-05,2]
[348381468,1736487032155,-62.8106948,9.999e-05,2]
[348381469,1736487032206,-636.9793052,9.999e-05,2]
[348381470,1736487032216,-454.0357334,9.999e-05,2]
[348381471,1736487032238,-45.9642666,9.999e-05,2]
[348381472,1736487032248,-396.1557334,9.999e-05,2]
[348381473,1736487032259,-853.19337,9.999e-05,2]
[348381477,1736487037747,-92.5808966,9.999e-05,2]
[348381478,1736487037757,-500.0,9.999e-05,2]
[348381479,1736487037767,-732.61,9.999e-05,2]
[348381480,1736487037776,-647.43,9.999e-05,2]
[348381481,1736487037786,-977.81,9.999e-05,2]
[348381482,1736487037796,-500.0,9.999e-05,2]
[348381483,1736487037805,-500.0,9.999e-05,2]
[348381484,1736487037815,-238.42324372,9.999e-05,2]
[348381485,1736487037825,-690.44,9.999e-05,2]
[348381486,1736487037835,-614.2,9.999e-05,2]
[348381487,1736487037845,-169.24,0.0001,2]
[348381488,1736487037855,-3417642.75586042,0.0001,2]
[348381489,1736487037865,-331.57580513,0.0001,2]
[348381490,1736487037874,-4239.10284717,0.0001,2]
[348381491,1736487037884,-1673.97983634,0.0001,2]
[348381492,1736487037893,-111708.40762755,0.0001,2]
[348381493,1736487037909,-3779.96245904,0.0001,2]
[348381494,1736487037969,-1321.23864544,0.0001,2]
[348381495,1736487037981,-5376.33860321,0.0001,2]
[348381496,1736487038026,-183490.34824702,0.0001,2]
[348381497,1736487040143,-500.0,9.999e-05,2]
[348381498,1736487040154,-5135.65336,0.0001,2]
[348381499,1736487040205,-946.36,0.0001,2]
[348381500,1736487040266,-335.84098074,0.0001,2]
[348381513,1736487043979,-770.69613598,0.0001,2]
[348381514,1736487043991,-610.98651663,0.0001,2]
[348381515,1736487044003,-492.49841418,0.0001,2]
[348381516,1736487044040,-1225.40449342,0.0001,2]
[348381517,1736487044052,-2493.1,0.0001,2]
[348381518,1736487044161,-966.43923763,0.0001,2]
[348381519,1736487044173,-650.0,0.0001,2]
[348381521,1736487045846,-1453.37,9.999e-05,2]
[348381522,1736487045856,-191189.57241196,0.0001,2]
[348381523,1736487045993,-2977.3692102,0.0001,2]
[348381524,1736487046053,-1382.5,0.0001,2]
[348381525,1736487046135,-500.0,0.0001,2]
[348381526,1736487046147,-531.0687792,0.0001,2]
[348381527,1736487683186,-150.0,8.929e-05,2]
[348381528,1736487683210,-150.0,9e-05,2]
[348381529,1736487683232,-150.0,9.134e-05,2]
[348381530,1736487683253,-7321.62,9.327e-05,2]
[348381531,1736487683274,-1000.0,9.463e-05,2]
[348381532,1736487683297,-150.0,9.71e-05,2]
[348381533,1736487683323,-150.0,9.711e-05,2]
[348381534,1736487683347,-300.0,9.969e-05,2]
[348381535,1736487683367,-500.0,9.973e-05,2]
[348381536,1736487683392,-150.0,9.996e-05,2]
[348381537,1736487683414,-300.0,9.998e-05,2]
[348381538,1736487683435,-500.0,9.999e-05,2]
[348381539,1736487683457,-500.0,9.999e-05,2]
[348381540,1736487683479,-500.0,9.999e-05,2]
[348381541,1736487683500,-500.0,9.999e-05,2]
[348381542,1736487683522,-500.0,9.999e-05,2]
[348381543,1736487683544,-500.0,9.999e-05,2]
[348381544,1736487683565,-500.0,9.999e-05,2]
[348381545,1736487683587,-513.31,9.999e-05,2]
[348381546,1736487683608,-500.0,9.999e-05,2]
[348381547,1736487683629,-384.94981871,9.999e-05,2]
[348381548,1736487683651,-653.63,9.999e-05,2]
[348381549,1736487683672,-500.0,9.999e-05,2]
[348381550,1736487683696,-618.64,9.999e-05,2]
[348381551,1736487683719,-645.62,9.999e-05,2]
[348381552,1736487683741,-500.0,9.999e-05,2]
[348381553,1736487683770,-500.0,9.999e-05,2]
[348381554,1736487683792,-500.0,9.999e-05,2]
[348381555,1736487683815,-500.0,9.999e-05,2]
[348381556,1736487683838,-505.80395521,9.999e-05,2]
[348381557,1736487683860,-557.02,9.999e-05,2]
[348381558,1736487683882,-500.0,9.999e-05,2]
[348381559,1736487683905,-500.0,9.999e-05,2]
[348381560,1736487683926,-508.17240353,9.999e-05,2]
[348381561,1736487683951,-500.0,9.999e-05,2]
[348381562,1736487683974,-500.0,9.999e-05,2]
[348381563,1736487683996,-500.0,9.999e-05,2]
[348381564,1736487684020,-696.19,9.999e-05,2]
[348381565,1736487684043,-500.0,9.999e-05,2]
[348381566,1736487684065,-500.0,9.999e-05,2]
[348381567,1736487684087,-500.0,9.999e-05,2]
[348381568,1736487684109,-500.0,9.999e-05,2]
[348381569,1736487684131,-500.0,9.999e-05,2]
[348381570,1736487684152,-619.23,9.999e-05,2]
[348381571,1736487684175,-500.0,9.999e-05,2]
[348381572,1736487684200,-500.0,9.999e-05,2]
[348381573,1736487684225,-500.0,9.999e-05,2]
[348381574,1736487684246,-500.0,9.999e-05,2]
[348381575,1736487684269,-500.0,9.999e-05,2]
[348381576,1736487684291,-556.25,9.999e-05,2]
[348381577,1736487684318,-500.0,9.999e-05,2]
[348381578,1736487684339,-500.0,9.999e-05,2]
[348381579,1736487684363,-500.0,9.999e-05,2]
[348381580,1736487684385,-190.49970156,9.999e-05,2]
[348381581,1736487684408,-695.47,9.999e-05,2]
[348381582,1736487684432,-500.0,9.999e-05,2]
[348381583,1736487684457,-500.0,9.999e-05,2]
[348381584,1736487684481,-385.21506558,9.999e-05,2]
[348381585,1736487684504,-336.9659934,9.999e-05,2]
[348381586,1736487684527,-500.0,9.999e-05,2]
[348381587,1736487684550,-500.0,9.999e-05,2]
[348381588,1736487684573,-704.37,9.999e-05,2]
[348381589,1736487684596,-185.3369201,9.999e-05,2]
[348381590,1736487684620,-647.4,9.999e-05,2]
[348381591,1736487684643,-500.0,9.999e-05,2]
[348381592,1736487684668,-500.0,9.999e-05,2]
[348381593,1736487684690,-799.16,9.999e-05,2]
[348381594,1736487684714,-500.0,9.999e-05,2]
[348381595,1736487684738,-500.0,9.999e-05,2]
[348381596,1736487684762,-500.0,9.999e-05,2]
[348381597,1736487684785,-770.41,9.999e-05,2]
[348381598,1736487684808,-500.0,9.999e-05,2]
[348381599,1736487684834,-533.93142622,9.999e-05,2]
[348381600,1736487684859,-588.23,9.999e-05,2]
[348381601,1736487684882,-632.93,9.999e-05,2]
[348381602,1736487684905,-685.94,9.999e-05,2]
[348381603,1736487684928,-500.0,9.999e-05,2]
[348381604,1736487684952,-500.0,9.999e-05,2]
[348381605,1736487684974,-596.16,9.999e-05,2]
[348381606,1736487684996,-500.0,9.999e-05,2]
[348381607,1736487685018,-545.74,9.999e-05,2]
[348381608,1736487685040,-500.0,9.999e-05,2]
[348381609,1736487685063,-692.57,9.999e-05,2]
[348381610,1736487685085,-501.93,9.999e-05,2]
[348381611,1736487685108,-500.0,9.999e-05,2]
[348381612,1736487685130,-500.0,9.999e-05,2]
[348381613,1736487685152,-505.27925976,9.999e-05,2]
[348381614,1736487685173,-500.0,9.999e-05,2]
[348381615,1736487685196,-550.25,9.999e-05,2]
[348381616,1736487685218,-613.87,9.999e-05,2]
[348381617,1736487685240,-500.0,9.999e-05,2]
[348381618,1736487685262,-500.0,9.999e-05,2]
[348381619,1736487685284,-821.82,9.999e-05,2]
[348381620,1736487685309,-521.42,9.999e-05,2]
[348381621,1736487685331,-1454.27,9.999e-05,2]
[348381622,1736487685354,-500.0,9.999e-05,2]
[348381623,1736487685377,-817.07,9.999e-05,2]
[348381624,1736487685401,-500.0,9.999e-05,2]
[348381625,1736487685425,-530.28,9.999e-05,2]
[348381626,1736487685448,-892.54,9.999e-05,2]
[348381627,1736487685471,-500.0,9.999e-05,2]
[348381628,1736487685493,-500.0,9.999e-05,2]
[348381629,1736487685515,-586.54,9.999e-05,2]
[348381630,1736487685537,-500.0,9.999e-05,2]
[348381631,1736487685559,-780.88,9.999e-05,2]
[348381632,1736487685582,-500.0,9.999e-05,2]
[348381633,1736487685605,-500.0,9.999e-05,2]
[348381634,1736487685627,-500.0,9.999e-05,2]
[348381635,1736487685650,-1286.02,9.999e-05,2]
[348381636,1736487685674,-500.0,9.999e-05,2]
[348381637,1736487685700,-659.97,9.999e-05,2]
[348381638,1736487685724,-500.0,9.999e-05,2]
[348381639,1736487685748,-620.45,9.999e-05,2]
[348381640,1736487685775,-500.0,9.999e-05,2]
[348381641,1736487685818,-2026.01,9.999e-05,2]
[348381642,1736487685844,-2987.35,9.999e-05,2]
[348381643,1736487685867,-570.01,9.999e-05,2]
[348381644,1736487685891,-500.0,9.999e-05,2]
[348381645,1736487685913,-661.67,9.999e-05,2]
[348381646,1736487685939,-500.0,9.999e-05,2]
[348381647,1736487685964,-892.38,9.999e-05,2]
[348381648,1736487685987,-1392.81,9.999e-05,2]
[348381649,1736487686010,-1760.41545593,9.999e-05,2]
[348381650,1736487873287,1177.43,8.219e-05,2]
[348381656,1736487963242,1581.81770215,8e-05,2]
[348381684,1736488232315,-300.0,8.595e-05,2]
[348381685,1736488232324,-150.0,8.912e-05,2]
[348381686,1736488232333,-1000.0,9.106e-05,2]
[348381687,1736488232343,-250.0,9.127e-05,2]
[348381688,1736488232352,-832.51,9.158e-05,2]
[348381689,1736488232361,-150.0,9.287e-05,2]
[348381690,1736488232370,-181.22,9.35e-05,2]
[348381691,1736488232380,-150.0,9.356e-05,2]
[348381692,1736488232389,-150.0,9.387e-05,2]
[348381693,1736488232398,-150.62526939,9.437e-05,2]
[348381694,1736488232408,-150.0,9.517e-05,2]
[348381695,1736488232417,-150.0,9.675e-05,2]
[348381696,1736488232426,-153.711461,9.78e-05,2]
[348381697,1736488232436,-153.711461,9.84e-05,2]
[348381698,1736488232446,-870.1311,9.9e-05,2]
[348381699,1736488232455,-511.04469238,9.973e-05,2]
[348381700,1736488232465,-10349.26440489,9.99e-05,2]
[348381701,1736488232492,-292.32064305,9.99e-05,2]
[348381706,1736488232615,-641.5937749,9.99e-05,2]
[348381709,1736488232634,-561.62896266,9.99e-05,2]
[348381711,1736488232646,-476.47053834,9.99e-05,2]
[348381713,1736488232657,-4857.16957927,9.99e-05,2]
[348381717,1736488232685,-2465.47819009,9.99e-05,2]
[348381721,1736488232709,-1861.19286154,9.99e-05,2]
[348381723,1736488232726,-34874.10386423,9.99e-05,2]
[348381725,1736488232735,-150.0,9.998e-05,2]
[348381727,1736488232745,-500.0,9.998e-05,2]
[348381728,1736488232754,-500.0,9.998e-05,2]
[348381730,1736488232763,-500.0,9.999e-05,2]
[348381732,1736488232773,-500.0,9.999e-05,2]
[348381734,1736488232782,-500.0,9.999e-05,2]
[348381736,1736488232793,-500.0,9.999e-05,2]
[348381738,1736488232803,-500.0,9.999e-05,2]
[348381739,1736488232812,-500.0,9.999e-05,2]
[348381740,1736488232822,-500.0,9.999e-05,2]
[348381741,1736488232831,-500.0,9.999e-05,2]
[348381742,1736488232841,-500.0,9.999e-05,2]
[348381743,1736488232850,-500.0,9.999e-05,2]
[348381744,1736488232860,-500.0,9.999e-05,2]
[348381745,1736488232869,-500.0,9.999e-05,2]
[348381746,1736488232880,-500.83049956,9.999e-05,2]
[348381747,1736488232890,-161.54,9.999e-05,2]
[348381748,1736488232899,-569.31,9.999e-05,2]
[348381749,1736488232908,-500.0,9.999e-05,2]
[348381750,1736488232918,-500.0,9.999e-05,2]
[348381751,1736488232927,-500.0,9.999e-05,2]
[348381752,1736488232937,-500.0,9.999e-05,2]
[348381753,1736488232947,-609.44,9.999e-05,2]
[348381754,1736488232956,-500.0,9.999e-05,2]
[348381755,1736488232966,-500.0,9.999e-05,2]
[348381756,1736488232975,-554.6,9.999e-05,2]
[348381757,1736488232984,-500.0,9.999e-05,2]
[348381758,1736488232994,-739.74,9.999e-05,2]
[348381759,1736488233004,-672.17,9.999e-05,2]
[348381760,1736488233013,-593.56,9.999e-05,2]
[348381761,1736488233024,-500.0,9.999e-05,2]
[348381762,1736488233034,-500.0,9.999e-05,2]
[348381763,1736488233044,-500.0,9.999e-05,2]
[348381764,1736488233054,-678.25,9.999e-05,2]
[348381765,1736488233064,-500.0,9.999e-05,2]
[348381766,1736488233074,-500.0,9.999e-05,2]
[348381767,1736488233083,-500.0,9.999e-05,2]
[348381768,1736488233093,-500.0,9.999e-05,2]
[348381769,1736488233102,-500.0,9.999e-05,2]
[348381770,1736488233111,-500.0,9.999e-05,2]
[348381771,1736488233121,-500.0,9.999e-05,2]
[348381772,1736488233132,-500.0,9.999e-05,2]
[348381773,1736488233142,-500.0,9.999e-05,2]
[348381774,1736488233151,-500.0,9.999e-05,2]
[348381775,1736488233161,-500.0,9.999e-05,2]
[348381776,1736488233170,-500.0,9.999e-05,2]
[348381777,1736488233180,-613.69,9.999e-05,2]
[348381778,1736488233190,-500.0,9.999e-05,2]
[348381779,1736488233200,-500.0,9.999e-05,2]
[348381780,1736488233209,-500.0,9.999e-05,2]
[348381781,1736488233218,-500.0,9.999e-05,2]
[348381782,1736488233228,-512.75,9.999e-05,2]
[348381783,1736488233237,-500.0,9.999e-05,2]
[348381784,1736488233246,-500.0,9.999e-05,2]
[348381785,1736488233255,-500.0,9.999e-05,2]
[348381786,1736488233264,-319.07908884,9.999e-05,2]
[348381787,1736488233274,-500.0,9.999e-05,2]
[348381788,1736488233284,-647.23,9.999e-05,2]
[348381789,1736488233294,-500.0,9.999e-05,2]
[348381790,1736488233304,-500.0,9.999e-05,2]
[348381791,1736488233313,-500.0,9.999e-05,2]
[348381792,1736488233323,-639.55,9.999e-05,2]
[348381793,1736488233332,-500.0,9.999e-05,2]
[348381794,1736488233341,-500.0,9.999e-05,2]
[348381795,1736488233351,-500.0,9.999e-05,2]
[348381796,1736488233360,-476.20532984,9.999e-05,2]
[348381797,1736488233370,-500.0,9.999e-05,2]
[348381798,1736488233381,-500.0,9.999e-05,2]
[348381799,1736488233390,-553.38,9.999e-05,2]
[348381800,1736488233400,-500.0,9.999e-05,2]
[348381801,1736488233409,-500.0,9.999e-05,2]
[348381802,1736488233419,-500.0,9.999e-05,2]
[348381803,1736488233428,-510.20735336,9.999e-05,2]
[348381804,1736488233439,-500.0,9.999e-05,2]
[348381805,1736488233448,-500.0,9.999e-05,2]
[348381806,1736488233458,-408.94434691,9.999e-05,2]
[348381807,1736488233468,-500.0,9.999e-05,2]
[348381808,1736488233478,-500.0,9.999e-05,2]
[348381809,1736488233490,-500.0,9.999e-05,2]
[348381810,1736488233500,-500.0,9.999e-05,2]
[348381811,1736488233510,-500.0,9.999e-05,2]
[348381812,1736488233519,-511.96773685,9.999e-05,2]
[348381813,1736488233530,-688.01,9.999e-05,2]
[348381814,1736488233541,-500.0,9.999e-05,2]
[348381815,1736488233550,-500.0,9.999e-05,2]
[348381816,1736488233561,-689.54,9.999e-05,2]
[348381817,1736488233570,-500.0,9.999e-05,2]
[348381818,1736488233580,-500.0,9.999e-05,2]
[348381819,1736488233590,-500.0,9.999e-05,2]
[348381820,1736488233599,-614.26,9.999e-05,2]
[348381821,1736488233609,-500.0,9.999e-05,2]
[348381822,1736488233619,-500.0,9.999e-05,2]
[348381823,1736488233629,-500.0,9.999e-05,2]
[348381824,1736488233638,-500.0,9.999e-05,2]
[348381825,1736488233648,-711.53,9.999e-05,2]
[348381826,1736488233658,-500.0,9.999e-05,2]
[348381827,1736488233668,-500.0,9.999e-05,2]
[348381828,1736488233678,-500.0,9.999e-05,2]
[348381829,1736488233688,-500.0,9.999e-05,2]
[348381830,1736488233698,-621.74940206,9.999e-05,2]
[348381831,1736488233708,-553.9,9.999e-05,2]
[348381832,1736488233717,-500.0,9.999e-05,2]
[348381833,1736488233727,-695.85,9.999e-05,2]
[348381834,1736488233737,-677.31,9.999e-05,2]
[348381835,1736488233747,-500.0,9.999e-05,2]
[348381836,1736488233756,-500.0,9.999e-05,2]
[348381837,1736488233766,-687.33,9.999e-05,2]
[348381838,1736488233776,-786.7,9.999e-05,2]
[348381839,1736488233786,-500.0,9.999e-05,2]
[348381840,1736488233796,-500.0,9.999e-05,2]
[348381841,1736488233805,-883.61,9.999e-05,2]
[348381842,1736488233816,-732.9,9.999e-05,2]
[348381843,1736488233826,-500.0,9.999e-05,2]
[348381844,1736488233835,-584.56,9.999e-05,2]
[348381845,1736488233845,-531.34995731,9.999e-05,2]
[348381846,1736488233854,-635.63,9.999e-05,2]
[348381847,1736488233864,-642.39,9.999e-05,2]
[348381848,1736488233874,-678.19,9.999e-05,2]
[348381849,1736488233884,-500.0,9.999e-05,2]
[348381850,1736488233894,-500.0,9.999e-05,2]
[348381851,1736488233903,-500.0,9.999e-05,2]
[348381852,1736488233913,-210.63662274,9.999e-05,2]
[348381853,1736488233922,-500.0,9.999e-05,2]
[348381854,1736488233931,-843.83,9.999e-05,2]
[348381855,1736488233941,-500.0,9.999e-05,2]
[348381856,1736488233950,-500.0,9.999e-05,2]
[348381857,1736488233960,-500.0,9.999e-05,2]
[348381858,1736488233969,-759.14,9.999e-05,2]
[348381859,1736488233978,-492.2757238,9.999e-05,2]
[348381860,1736488233988,-627.39,9.999e-05,2]
[348381861,1736488233998,-500.0,9.999e-05,2]
[348381862,1736488234007,-500.0,9.999e-05,2]
[348381863,1736488234017,-500.0,9.999e-05,2]
[348381864,1736488234026,-504.9750682,9.999e-05,2]
[348381865,1736488234036,-1037.93776832,9.999e-05,2]
[348381866,1736488237935,-36.30223168,9.999e-05,2]
[348381867,1736488237946,-500.0,9.999e-05,2]
[348381868,1736488237956,-297.39360705,9.999e-05,2]
[348381869,1736488237968,-202.60639295,9.999e-05,2]
[348381870,1736488237977,-500.0,9.999e-05,2]
[348381871,1736488237986,-500.0,9.999e-05,2]
[348381872,1736488237996,-500.0,9.999e-05,2]
[348381873,1736488238006,-500.0,9.999e-05,2]
[348381874,1736488238016,-500.0,9.999e-05,2]
[348381875,1736488238026,-500.0,9.999e-05,2]
[348381876,1736488238036,-500.0,9.999e-05,2]
[348381877,1736488238045,-543.84,9.999e-05,2]
[348381878,1736488238055,-500.0,9.999e-05,2]
[348381879,1736488238065,-684.54,9.999e-05,2]
[348381880,1736488238074,-500.0,9.999e-05,2]
[348381881,1736488238084,-500.0,9.999e-05,2]
[348381882,1736488238093,-500.0,9.999e-05,2]
[348381883,1736488238103,-520.53,9.999e-05,2]
[348381884,1736488238112,-500.0,9.999e-05,2]
[348381885,1736488238122,-1871.07,9.999e-05,2]
[348381886,1736488238133,-501.85,9.999e-05,2]
[348381887,1736488238143,-500.0,9.999e-05,2]
[348381888,1736488238153,-500.0,9.999e-05,2]
[348381889,1736488238163,-609.12,9.999e-05,2]
[348381890,1736488238174,-500.0,9.999e-05,2]
[348381891,1736488238183,-2611.28,9.999e-05,2]
[348381892,1736488238193,-500.0,9.999e-05,2]
[348381893,1736488238203,-500.0,9.999e-05,2]
[348381894,1736488238212,-639.44,9.999e-05,2]
[348381895,1736488238221,-500.0,9.999e-05,2]
[348381896,1736488238231,-500.0,9.999e-05,2]
[348381897,1736488238241,-374.28033822,9.999e-05,2]
[348381898,1736488238274,-285.17966178,9.999e-05,2]
[348381899,1736488238283,-297.96033822,9.999e-05,2]
[348381900,1736488238295,-505.89966178,9.999e-05,2]
[348381901,1736488238304,-500.0,9.999e-05,2]
[348381902,1736488238313,-847.39082286,9.999e-05,2]
[348381903,1736488238325,-476.67917714,9.999e-05,2]
[348381904,1736488238334,-293.28525439,9.999e-05,2]
[348381905,1736488238346,-414.04008287,9.999e-05,2]
[348381906,1736488238357,-12.33466274,9.999e-05,2]
[348381907,1736488238367,-1015.56598435,9.999e-05,2]
[348381908,1736488238388,-358.16823312,9.999e-05,2]
[348381909,1736488238399,-355.72,9.999e-05,2]
[348381910,1736488238411,-541.01578253,9.999e-05,2]
[348381911,1736488238421,-500.0,9.999e-05,2]
[348381912,1736488238431,-500.0,9.999e-05,2]
[348381913,1736488238440,-598.3,9.999e-05,2]
[348381914,1736488238450,-348.04597667,9.999e-05,2]
[348381915,1736488238481,-562.06402333,9.999e-05,2]
[348381916,1736488238492,-876.18,9.999e-05,2]
[348381917,1736488238502,-500.0,9.999e-05,2]
[348381918,1736488238512,-272.0480215,9.999e-05,2]
[348381919,1736488238524,-462.119996,9.999e-05,2]
[348381920,1736488238545,-150.6719825,9.999e-05,2]
[348381921,1736488238556,-500.0,9.999e-05,2]
[348381922,1736488238565,-820.4180175,9.999e-05,2]
[348381923,1736488238577,-83.5519825,9.999e-05,2]
[348381924,1736488238587,-582.94,9.999e-05,2]
[348381925,1736488238597,-500.0,9.999e-05,2]
[348381926,1736488238607,-361.263008,9.999e-05,2]
[348381927,1736488238617,-1570.61,9.999e-05,2]
[348381928,1736488238627,-611.43,9.999e-05,2]
[348381929,1736488238641,-500.0,9.999e-05,2]
[348381930,1736488238651,-500.0,9.999e-05,2]
[348381931,1736488238661,-133.68567338,9.999e-05,2]
[348381933,1736488240042,-483.94432662,9.999e-05,2]
[348381934,1736488240051,-515.63567338,9.999e-05,2]
[348381935,1736488240062,-360.39432662,9.999e-05,2]
[348381936,1736488240072,-103.45413338,9.999e-05,2]
[348381937,1736488240264,-396.54586662,9.999e-05,2]
[348381938,1736488240274,-500.0,9.999e-05,2]
[348381939,1736488240285,-500.0,9.999e-05,2]
[348381940,1736488240296,-695.69,9.999e-05,2]
[348381941,1736488240309,-500.0,9.999e-05,2]
[348381942,1736488240321,-2431.61,9.999e-05,2]
[348381943,1736488240332,-500.0,9.999e-05,2]
[348381944,1736488240343,-448.452925,9.999e-05,2]
[348381945,1736488240354,-567.09,9.999e-05,2]
[348381946,1736488240364,-500.0,9.999e-05,2]
[348381947,1736488240375,-158.652707,9.999e-05,2]
[348381948,1736488240385,-500.0,9.999e-05,2]
[348381949,1736488240395,-969.56,9.999e-05,2]
[348381950,1736488240404,-1235.35057329,9.999e-05,2]
[348381951,1736488240426,-643.1950897,9.999e-05,2]
[348381952,1736488240437,-459.53348765,9.999e-05,2]
[348381953,1736488240448,-327.68,9.999e-05,2]
[348381954,1736488240495,-86.00084936,9.999e-05,2]
[348381955,1736488240505,-1527.81,9.999e-05,2]
[348381956,1736488240515,-156.984396,9.999e-05,2]
[348381957,1736488240525,-642.11,9.999e-05,2]
[348381958,1736488240535,-847.27,9.999e-05,2]
[348381959,1736488240544,-500.0,9.999e-05,2]
[348381960,1736488240554,-827.51,9.999e-05,2]
[348381961,1736488240564,-757.06,9.999e-05,2]
[348381962,1736488240574,-2120.81,9.999e-05,2]
[348381963,1736488240583,-653.52,9.999e-05,2]
[348381964,1736488240592,-500.0,9.999e-05,2]
[348381965,1736488240602,-1022.33,9.999e-05,2]
[348381966,1736488240611,-1431.72,9.999e-05,2]
[348381967,1736488240621,-500.0,9.999e-05,2]
[348381968,1736488240632,-557.92,9.999e-05,2]
[348381969,1736488240641,-776.26,9.999e-05,2]
[348381970,1736488240651,-550.99,9.999e-05,2]
[348381971,1736488240660,-500.0,9.999e-05,2]
[348381972,1736488240669,-517.49030595,9.999e-05,2]
[348381973,1736488240679,-589.02,9.999e-05,2]
[348381974,1736488240689,-1202.68,9.999e-05,2]
[348381975,1736488240699,-1768.54,9.999e-05,2]
[348381976,1736488240708,-500.0,9.999e-05,2]
[348381977,1736488240718,-500.0,9.999e-05,2]
[348381979,1736488240727,-550.37,9.999e-05,2]
[348381980,1736488240737,-500.0,9.999e-05,2]
[348381981,1736488240746,-500.0,9.999e-05,2]
[348381982,1736488240756,-602.68,9.999e-05,2]
[348381983,1736488240765,-4038.0,9.999e-05,2]
[348381984,1736488240775,-500.0,9.999e-05,2]
[348381985,1736488240784,-500.0,9.999e-05,2]
[348381986,1736488240794,-843.7,9.999e-05,2]
[348381987,1736488240803,-500.0,9.999e-05,2]
[348381988,1736488240812,-500.0,9.999e-05,2]
[348381989,1736488240821,-563.6,9.999e-05,2]
[348381990,1736488240832,-500.0,9.999e-05,2]
[348381991,1736488240843,-330.55822295,9.999e-05,2]
[348381992,1736488240853,-543.15,9.999e-05,2]
[348381993,1736488240863,-718.91,9.999e-05,2]
[348381994,1736488240873,-500.0,9.999e-05,2]
[348381995,1736488240883,-807.14,9.999e-05,2]
[348381996,1736488240892,-500.0,9.999e-05,2]
[348381997,1736488240902,-593.53,9.999e-05,2]
[348381998,1736488240911,-889.79,9.999e-05,2]
[348381999,1736488240920,-500.0,9.999e-05,2]
[348382000,1736488240929,-594.6,9.999e-05,2]
[348382001,1736488240938,-772.97,9.999e-05,2]
[348382002,1736488240947,-500.0,9.999e-05,2]
[348382003,1736488240956,-500.0,9.999e-05,2]
[348382004,1736488240965,-2000.0,9.999e-05,2]
[348382005,1736488240975,-500.0,9.999e-05,2]
[348382006,1736488240984,-500.0,9.999e-05,2]
[348382007,1736488240993,-1941.6,9.999e-05,2]
[348382008,1736488241003,-500.0,9.999e-05,2]
[348382009,1736488241012,-500.0,9.999e-05,2]
[348382010,1736488241021,-200.0,9.999e-05,2]
[348382011,1736488241030,-500.0,9.999e-05,2]
[348382012,1736488241040,-500.0,9.999e-05,2]
[348382013,1736488241049,-500.0,9.999e-05,2]
[348382014,1736488241058,-500.0,9.999e-05,2]
[348382015,1736488241067,-716.28,9.999e-05,2]
[348382016,1736488241076,-500.0,9.999e-05,2]
[348382017,1736488241085,-500.0,9.999e-05,2]
[348382018,1736488241095,-500.0,9.999e-05,2]
[348382019,1736488241104,-500.0,9.999e-05,2]
[348382020,1736488241112,-634.1,9.999e-05,2]
[348382021,1736488241122,-937.07,9.999e-05,2]
[348382022,1736488241132,-500.0,9.999e-05,2]
[348382023,1736488241141,-533.18,9.999e-05,2]
[348382024,1736488241150,-500.0,9.999e-05,2]
[348382025,1736488241159,-511.96,9.999e-05,2]
[348382026,1736488241168,-1334.78,9.999e-05,2]
[348382027,1736488241177,-500.0,9.999e-05,2]
[348382028,1736488241186,-2489.78,9.999e-05,2]
[348382029,1736488241195,-560.94,9.999e-05,2]
[348382030,1736488241204,-1051.17,9.999e-05,2]